bitfinex-derivatives/quotes_SOLF0:USTF0_20220110
["timestamp","ask_amount","ask_price","bid_price","bid_amount"]
[1641819703521,7.36946829,135.7,135.59,11.91304287]
[1641819703721,7.36946829,135.7,135.59,7.74276433]
[1641819703920,7.36946829,135.7,135.62,5.89840766]
[1641819704121,7.36946829,135.7,135.63,1.842]
[1641819704521,7.36946829,135.7,135.64,4.17027854]
[1641819705125,7.36946829,135.7,135.62,4.17027854]
[1641819706224,7.3724565,135.65,135.62,4.17027854]
[1641819706426,15.2874565,135.65,135.62,4.17027854]
[1641819706624,15.2874565,135.65,135.62,7.854e-05]
[1641819706825,15.2874565,135.65,135.58,7.854e-05]
[1641819707325,7.3724565,135.65,135.58,7.854e-05]
[1641819707524,7.3724565,135.65,135.59,1.843]
[1641819707726,7.37028302,135.69,135.6,5.89962903]
[1641819708123,15.44605242,135.72,135.61,7.854e-05]
[1641819708323,15.44605242,135.72,135.62,1.842]
[1641819708324,22.81443469,135.72,135.62,1.842]
[1641819708523,15.44605242,135.72,135.62,1.842]
[1641819708724,7.37191301,135.66,135.61,7.854e-05]
[1641819709124,7.37028302,135.69,135.59,15.44605242]
[1641819709523,7.37028302,135.69,135.6,7.854e-05]
[1641819710023,15.44605242,135.75,135.6,7.854e-05]
[1641819710024,15.44605242,135.75,135.6,13.31660767]
[1641819710225,15.44605242,135.71,135.64,5.89782722]
[1641819710426,15.44605242,135.71,135.64,14.12982722]
[1641819710624,15.44605242,135.71,135.64,8.232]
[1641819710826,15.44605242,135.71,135.65,7.854e-05]
[1641819711427,7.36865375,135.72,135.65,7.854e-05]
[1641819712230,7.36865375,135.72,135.64,6.127]
[1641819712430,15.44605242,135.75,135.64,7.969]
[1641819712630,15.44605242,135.75,135.65,5.89750553]
[1641819712830,7.36756797,135.74,135.63,138.40337854]
[1641819713033,7.36756797,135.74,135.65,7.854e-05]
[1641819713332,7.36756797,135.74,135.64,7.854e-05]
[1641819713832,3.9190496,135.73,135.64,7.854e-05]
[1641819715235,7.36946829,135.7,135.64,7.854e-05]
[1641819715837,3.9190496,135.69,135.64,7.854e-05]
[1641819716837,7.36783938,135.73,135.63,8.35175791]
[1641819716838,3.9190496,135.72,135.63,8.35175791]
[1641819717236,3.9190496,135.68,135.63,2.45358529]
[1641819717438,3.9190496,135.68,135.63,9.75558529]
[1641819717636,3.9190496,135.71,135.64,7.854e-05]
[1641819718542,7.36621119,135.76,135.65,5.89752941]
[1641819718741,7.36621119,135.76,135.66,1.842]
[1641819718941,7.36621119,135.76,135.67,5.89623503]
[1641819719242,7.36621119,135.76,135.68,1.842]
[1641819719842,3.52602403,135.75,135.69,4.16811204]
[1641819720643,12.63402403,135.75,135.69,4.16811204]
[1641819720845,7.36756797,135.74,135.69,4.16811204]
[1641819721046,10.893592,135.74,135.69,4.16811204]
[1641819721746,3.52602403,135.73,135.67,4.16811204]
[1641819722145,3.52602403,135.76,135.67,4.16811204]
[1641819722446,3.52602403,135.76,135.67,12.96211204]
[1641819722846,10.89223522,135.76,135.67,6.01011204]
[1641819723046,7.36783938,135.73,135.68,4.16811204]
[1641819723247,15.36383938,135.73,135.68,4.16811204]
[1641819723548,3.52602403,135.72,135.68,4.16811204]
[1641819723846,3.52602403,135.72,135.67,4.16811204]
[1641819724246,3.52602403,135.72,135.67,10.06439552]
[1641819724847,3.52602403,135.75,135.68,4.16811204]
[1641819725047,3.52602403,135.75,135.69,7.73738659]
[1641819725250,15.44605242,135.79,135.69,1.842]
[1641819725453,15.44605242,135.79,135.68,6.00911204]
[1641819725751,3.13435614,135.78,135.7,4.16811204]
[1641819726150,3.13435614,135.78,135.69,4.16811204]
[1641819726350,3.13435614,135.78,135.69,6.62469322]
[1641819727052,3.13435614,135.78,135.7,4.16811204]
[1641819727952,3.13435614,135.79,135.7,8.795]
[1641819728155,3.13435614,135.79,135.71,1.841]
[1641819728452,3.13435614,135.78,135.71,6.00911204]
[1641819728653,3.13435614,135.78,135.71,11.90395385]
[1641819728853,3.13435614,135.77,135.72,4.16811204]
[1641819729054,41.49604829,135.84,135.75,5.89314421]
[1641819729254,61.9103779,135.88,135.76,1.841]
[1641819729554,53.9103779,135.88,135.79,5.8910661]
[1641819729753,53.9103779,135.88,135.8,1.84]
[1641819729953,53.9103779,135.88,135.81,5.89030032]
[1641819730153,7.355916,135.95,135.82,1.84]
[1641819730354,7.355916,135.95,135.82,10.151]
[1641819730554,2.42609898,135.94,135.83,4.16365348]
[1641819730754,2.42609898,135.94,135.84,1.839]
[1641819731158,2.42609898,135.94,135.84,7.72789214]
[1641819731556,2.42609898,135.95,135.87,5.88784448]
[1641819731859,2.70746705,135.94,135.88,1.839]
[1641819732056,2.70746705,135.94,135.88,4.16365348]
[1641819732455,2.70746705,135.94,135.88,6.00265348]
[1641819732658,2.42609898,135.93,135.92,5.88552269]
[1641819732857,2.42609898,135.93,135.92,13.68552269]
[1641819733055,2.42609898,135.93,135.89,4.16365348]
[1641819733656,2.42609898,135.93,135.86,1.839]
[1641819733857,6.811,135.94,135.9,4.16203714]
[1641819734056,2.42609898,135.97,135.9,4.16203714]
[1641819734456,2.42609898,135.93,135.87,4.16203714]
[1641819734659,2.42609898,135.93,135.89,5.88684698]
[1641819734857,2.42609898,135.96,135.91,4.16203714]
[1641819735058,2.42609898,135.96,135.92,1.839]
[1641819735258,2.42609898,136.01,135.91,136.62543714]
[1641819735658,2.42609898,136.0,135.92,4.16203714]
[1641819736161,2.42609898,135.99,135.92,4.16203714]
[1641819736362,2.42609898,135.99,135.93,1.838]
[1641819736760,2.42609898,135.98,135.93,10.415]
[1641819737160,2.42609898,135.98,135.94,4.16203714]
[1641819737366,7.35077918,136.05,135.95,1.838]
[1641819738260,7.35077918,136.05,135.94,1.838]
[1641819738459,7.35077918,136.05,135.96,5.88391872]
[1641819738660,7.35077918,136.05,135.97,1.838]
[1641819738861,1.06907661,136.04,135.97,5.9981596]
[1641819739461,1.06907661,136.04,135.98,4.1601596]
[1641819739660,1.06907661,136.04,135.99,1.838]
[1641819740260,1.06907661,136.08,136.0,4.1601596]
[1641819740762,1.06907661,136.08,136.01,1.837]
[1641819740962,1.06907661,136.08,136.01,8.604]
[1641819741164,1.06907661,136.08,136.01,14.48587307]
[1641819741464,1.06907661,136.08,136.05,5.88015204]
[1641819741662,7.34618916,136.13,136.06,1.837]
[1641819742664,7.34726865,136.11,136.03,1.836]
[1641819742963,16.45026865,136.11,136.02,74.13546975]
[1641819743364,9.103,136.11,136.02,74.13546975]
[1641819743564,0.85483319,136.1,136.03,4.15859115]
[1641819743763,0.85483319,136.1,136.04,1.837]
[1641819744366,0.85483319,136.12,136.05,10.03868987]
[1641819744565,0.85483319,136.12,136.06,1.837]
[1641819744765,0.85483319,136.12,136.05,10.03868987]
[1641819744965,0.85483319,136.12,136.05,5.88009872]
[1641819745166,9.34583319,136.12,136.03,1.837]
[1641819745366,7.34753857,136.11,135.99,72.8756]
[1641819745866,0.85483319,136.1,136.0,4.15833513]
[1641819746065,0.85483319,136.1,136.01,7.71866408]
[1641819746268,0.85483319,136.11,136.04,5.88036537]
[1641819746470,0.85483319,136.11,136.05,1.837]
[1641819746867,0.85483319,136.14,136.05,5.99533513]
[1641819747069,0.85483319,136.1,136.05,12.21133513]
[1641819747471,0.85483319,136.1,136.06,5.87951147]
[1641819747768,95.92046732,136.21,136.07,1.837]
[1641819747769,0.85483319,136.15,136.07,1.837]
[1641819748170,0.85483319,136.09,136.07,4.15833513]
[1641819748573,0.85483319,136.14,136.07,4.15833513]
[1641819748772,8.20075253,136.14,136.07,4.15833513]
[1641819748971,7.34591934,136.14,136.06,74.40281147]
[1641819749174,0.85483319,136.16,136.07,1.836]
[1641819749372,0.85483319,136.13,136.07,13.09637826]
[1641819749772,0.85483319,136.16,136.08,4.15737826]
[1641819750582,0.85483319,136.16,136.09,7.71438784]
[1641819751176,0.85483319,136.2,136.1,4.15737826]
[1641819751475,0.85483319,136.15,136.1,12.57537826]
[1641819751876,0.85483319,136.2,136.1,8.418]
[1641819752076,0.85483319,136.2,136.1,14.29591979]
[1641819752776,0.85483319,136.2,136.11,4.15603296]
[1641819753177,0.85483319,136.21,136.11,4.15603296]
[1641819753379,0.85483319,136.21,136.11,12.14203296]
[1641819753979,7.34268302,136.2,136.11,7.986]
[1641819754184,0.85483319,136.21,136.11,7.986]
[1641819754381,0.85483319,136.19,136.12,5.99193641]
[1641819754982,0.85483319,136.19,136.11,13.86339589]
[1641819754983,0.85483319,136.21,136.13,4.15593641]
[1641819755181,8.19670757,136.21,136.13,4.15593641]
[1641819755380,8.19670757,136.21,136.12,4.15593641]
[1641819755780,0.85483319,136.2,136.12,4.15593641]
[1641819756180,7.34349183,136.18,136.1,70.5785]
[1641819756381,7.34349183,136.18,136.08,67.8368]
[1641819756580,0.85483319,136.17,136.08,67.8368]
[1641819756782,0.85483319,136.17,136.06,69.6912]
[1641819756783,9.44183319,136.17,136.06,69.6912]
[1641819757581,0.85483319,136.16,136.07,4.15732071]
[1641819758184,7.34672887,136.12,136.07,4.15732071]
[1641819758382,35.34339383,136.12,136.01,1.836]
[1641819758581,7.34969866,136.08,135.98,138.5593]
[1641819758782,6.168,136.08,135.99,5.88261159]
[1641819758982,7.34699875,136.12,136.0,1.837]
[1641819759283,7.34699875,136.12,136.01,5.88151869]
[1641819759482,7.34699875,136.12,136.02,1.837]
[1641819759681,1.99753311,136.11,136.02,11.87638268]
[1641819760183,1.99753311,136.11,136.03,4.15798435]
[1641819760383,7.34780852,136.1,136.03,4.15798435]
[1641819760781,7.34780852,136.1,136.01,4.15798435]
[1641819760982,1.99753311,136.09,135.98,1.837]
[1641819761581,1.99753311,136.09,135.99,4.15857352]
[1641819762583,1.99753311,136.09,135.98,8.159]
[1641819762783,1.99753311,136.09,136.0,4.15857352]
[1641819762985,1.99753311,136.09,136.01,1.837]
[1641819763185,1.99753311,136.09,136.01,10.026]
[1641819763484,1.99753311,136.09,136.01,8.189]
[1641819763684,1.99753311,136.1,136.02,4.15857352]
[1641819763885,1.99753311,136.1,136.03,1.837]
[1641819764285,1.99753311,136.1,136.02,4.15857352]
[1641819764487,1.99753311,136.12,136.04,4.15857352]
[1641819764684,1.99753311,136.12,136.04,10.18257352]
[1641819764885,1.99753311,136.12,136.04,6.024]
[1641819765285,1.99753311,136.12,136.05,4.15857352]
[1641819765687,2.70450108,136.11,136.05,4.15857352]
[1641819766190,1.99753311,136.1,136.02,4.15857352]
[1641819766490,1.99753311,136.1,136.0,4.15857352]
[1641819766891,9.34561159,136.1,136.0,4.15857352]
[1641819767293,7.34942858,136.07,136.0,4.15857352]
[1641819767494,15.24042858,136.07,135.97,4.15857352]
[1641819768195,1.99753311,136.06,135.94,4.15857352]
[1641819768494,20.03854521,136.06,135.95,9.18580852]
[1641819768693,20.03854521,136.06,135.95,21.13200752]
[1641819768994,1.99753311,136.05,135.96,4.15857352]
[1641819769494,1.99753311,136.05,135.96,6.6139375]
[1641819769897,10.88753311,136.05,135.96,6.6139375]
[1641819770099,7.35158978,136.03,135.97,4.15857352]
[1641819770296,29.40635913,136.06,135.97,4.15857352]
[1641819770498,1.99753311,136.04,135.97,4.15857352]
[1641819770696,7.35158978,136.03,135.97,4.15857352]
[1641819771396,1.99753311,136.02,135.94,4.15857352]
[1641819772997,2.70789823,136.01,135.94,4.15857352]
[1641819773297,7.35429307,135.98,135.94,4.15857352]
[1641819773500,7.35564546,135.96,135.88,15.33651102]
[1641819773997,7.35726898,135.93,135.88,15.33651102]
[1641819774197,15.22226898,135.93,135.86,15.33651102]
[1641819774900,3.24639117,135.92,135.87,6.00067958]
[1641819775200,3.24639117,135.92,135.87,4.16167958]
[1641819775797,3.24639117,135.95,135.87,4.16167958]
[1641819775998,3.24639117,135.95,135.87,10.84267958]
[1641819776398,3.24639117,135.97,135.87,6.681]
[1641819776600,3.24639117,135.97,135.88,2.44966484]
[1641819776799,3.24639117,135.98,135.88,6.61134442]
[1641819777301,3.24639117,135.98,135.89,4.16167958]
[1641819777502,3.24639117,135.98,135.9,1.839]
[1641819777900,3.24639117,135.98,135.9,7.72556093]
[1641819778100,3.24639117,136.01,135.91,4.16167958]
[1641819778302,3.24639117,136.01,135.92,1.838]
[1641819778601,3.24639117,136.01,135.93,5.88525303]
[1641819778801,3.24639117,136.01,135.94,1.838]
[1641819779001,3.24639117,136.05,135.95,5.88449635]
[1641819779201,3.24639117,136.05,135.96,1.838]
[1641819779400,3.24639117,136.06,135.96,5.99967958]
[1641819779800,3.24639117,136.08,135.97,4.16167958]
[1641819780003,7.34969866,136.07,135.97,4.16167958]
[1641819780203,7.35213028,136.02,135.97,4.16167958]
[1641819780801,3.24639117,136.01,135.93,4.16167958]
[1641819782405,3.24639117,136.01,135.93,5.99967958]
[1641819782804,3.24639117,136.01,135.93,11.88480022]
[1641819783403,3.24639117,136.05,135.94,4.16167958]
[1641819783603,3.24639117,136.05,135.95,1.838]
[1641819783803,3.24639117,136.0,135.95,1.838]
[1641819784207,3.24639117,136.05,135.96,4.16167958]
[1641819784405,3.24639117,136.05,135.97,1.838]
[1641819784605,3.24639117,136.05,135.97,15.38546729]
[1641819785207,3.24639117,136.08,135.98,4.16167958]
[1641819785405,3.24639117,136.08,135.99,1.837]
[1641819785808,3.24639117,136.08,135.99,7.7194143]
[1641819786007,3.24639117,136.08,136.0,4.16167958]
[1641819786307,3.24639117,136.08,136.01,1.837]
[1641819786507,3.24639117,136.08,136.0,5.99867958]
[1641819786707,3.24639117,136.08,136.0,4.16167958]
[1641819786907,12.56639117,136.08,136.01,4.16167958]
[1641819787307,12.56639117,136.08,136.02,1.837]
[1641819787607,5.95186488,136.07,136.02,1.837]
[1641819787909,5.95186488,136.07,136.03,4.16167958]
[1641819788509,3.24639117,136.06,136.01,5.99867958]
[1641819788708,3.24639117,136.06,136.03,6.104]
[1641819788908,3.24639117,136.06,136.04,4.16167958]
[1641819789210,3.24639117,136.08,136.04,4.16167958]
[1641819790410,3.24639117,136.1,136.04,4.16167958]
[1641819790910,3.24639117,136.12,136.04,4.16167958]
[1641819791811,3.24639117,136.14,136.04,4.16167958]
[1641819793214,2.70181672,136.13,136.04,4.16167958]
[1641819793614,3.24639117,136.12,136.04,4.16167958]
[1641819794015,3.24639117,136.12,136.03,4.16167958]
[1641819794418,7.34780852,136.1,136.03,4.16167958]
[1641819794716,7.34888848,136.08,136.03,4.16167958]
[1641819794916,3.24639117,136.09,136.02,4.16167958]
[1641819795517,5.94820789,136.09,136.02,4.16167958]
[1641819795717,5.94820789,136.09,136.02,5.99867958]
[1641819795918,5.94820789,136.09,136.02,4.16167958]
[1641819796218,3.24639117,136.08,136.03,4.16167958]
[1641819796618,3.24639117,136.08,136.02,11.00167958]
[1641819797019,3.24639117,136.09,136.03,4.16167958]
[1641819797220,3.24639117,136.09,136.03,5.99867958]
[1641819797921,3.24639117,136.09,136.03,4.16167958]
[1641819798322,15.33651102,136.14,136.04,11.87894476]
[1641819798821,15.33651102,136.14,136.04,7.71726518]
[1641819799222,7.34484025,136.16,136.04,7.71726518]
[1641819799822,7.34484025,136.16,136.05,4.15634323]
[1641819800021,7.34484025,136.16,136.06,1.836]
[1641819800222,2.70046163,136.15,136.05,14.61834323]
[1641819800626,2.70046163,136.15,136.06,4.15634323]
[1641819801024,7.34645901,136.13,136.06,4.15634323]
[1641819801226,16.14845901,136.13,136.06,4.15634323]
[1641819801523,16.14845901,136.13,136.05,4.15634323]
[1641819802223,2.70046163,136.12,136.05,4.15634323]
[1641819803225,8.059,136.12,136.05,4.15634323]
[1641819804223,7.34780852,136.1,136.05,4.15634323]
[1641819804427,7.34780852,136.1,136.02,4.15634323]
[1641819805025,2.70046163,136.09,136.02,4.15634323]
[1641819805425,2.70046163,136.09,136.0,4.15634323]
[1641819807926,15.33651102,136.08,136.0,4.15634323]
[1641819810534,15.33651102,136.08,136.0,5.99334323]
[1641819811133,2.70046163,136.09,136.0,5.99334323]
[1641819811334,2.70046163,136.09,136.01,4.15634323]
[1641819812635,2.70046163,136.09,136.02,1.837]
[1641819813034,2.70046163,136.09,136.03,4.15634323]
[1641819813235,2.70046163,136.09,136.03,12.35534323]
[1641819813637,15.33651102,136.12,136.04,5.99334323]
[1641819813835,2.26774991,136.08,136.04,4.15634323]
[1641819814236,2.26774991,136.11,136.05,1.837]
[1641819814435,17.60426093,136.11,136.05,1.837]
[1641819814637,17.60426093,136.11,136.06,4.15634323]
[1641819815140,2.26774991,136.1,136.05,4.15634323]
[1641819815537,2.26774991,136.1,136.01,19.49285425]
[1641819815738,2.26774991,136.1,136.02,1.837]
[1641819815939,2.26774991,136.1,136.02,14.44434323]
[1641819816337,18.0511449,136.09,136.02,14.44434323]
[1641819816537,18.0511449,136.09,136.03,4.15634323]
[1641819816937,2.26774991,136.08,136.03,4.15634323]
[1641819817340,2.26774991,136.08,136.0,4.15634323]
[1641819817538,2.26774991,136.08,136.0,5.99334323]
[1641819817939,2.71463388,136.07,136.0,5.99334323]
[1641819818341,2.71463388,136.07,136.01,10.03795907]
[1641819818540,2.71463388,136.07,136.04,5.88032432]
[1641819818741,2.71463388,136.07,136.05,1.837]
[1641819819141,3.388e-05,136.1,136.04,13.92732432]
[1641819819342,3.388e-05,136.1,136.06,4.15634323]
[1641819819741,2.26752454,136.1,136.05,5.99334323]
[1641819819943,2.26752454,136.1,136.05,11.8732534]
[1641819820146,23.24993134,136.17,136.06,4.15634323]
[1641819820147,11.58960634,136.15,136.06,4.15634323]
[1641819820345,11.58960634,136.15,136.08,5.87855933]
[1641819820547,11.58960634,136.15,136.09,1.836]
[1641819820949,15.90563052,136.17,136.09,1.836]
[1641819821147,10.67674739,136.18,136.09,1.836]
[1641819821646,1.58608785,136.17,136.1,4.15482637]
[1641819821846,4.0,136.16,136.1,4.15482637]
[1641819822047,1.58608785,136.17,136.1,4.15482637]
[1641819822648,5.58608785,136.19,136.1,4.15482637]
[1641819822848,1.58608785,136.19,136.1,4.15482637]
[1641819823048,5.58608785,136.18,136.09,4.15482637]
[1641819823548,4.0,136.15,136.09,4.15482637]
[1641819823751,1.58608785,136.17,136.11,20.0]
[1641819823950,1.58608785,136.14,136.11,29.069]
[1641819824149,1.58608785,136.14,136.12,1.836]
[1641819824550,4.0,136.17,136.12,5.99082637]
[1641819825151,1.58608785,136.16,136.13,4.15482637]
[1641819825949,1.58608785,136.16,136.11,14.9464416]
[1641819825950,1.58608785,136.16,136.12,4.15482637]
[1641819826152,5.58608785,136.16,136.12,4.15482637]
[1641819826452,4.0,136.16,136.12,4.15482637]
[1641819826652,1.58608785,136.19,136.12,4.15482637]
[1641819826851,1.58608785,136.19,136.12,5.99082637]
[1641819827052,1.58608785,136.15,136.12,5.99082637]
[1641819827253,7.34268302,136.2,136.12,11.86772827]
[1641819827452,4.0,136.15,136.13,4.15482637]
[1641819827954,7.34268302,136.2,136.13,4.15482637]
[1641819828153,4.0,136.17,136.13,4.15482637]
[1641819828453,4.0,136.21,136.13,4.15482637]
[1641819828653,1.58499145,136.16,136.13,4.15482637]
[1641819828853,5.58499145,136.16,136.13,4.15482637]
[1641819829155,4.0,136.16,136.12,4.15482637]
[1641819829454,1.58499145,136.19,136.12,4.15482637]
[1641819829653,1.58499145,136.15,136.12,4.15482637]
[1641819830056,4.0,136.17,136.12,4.15482637]
[1641819830257,4.0,136.17,136.12,13.81782637]
[1641819830457,1.58499145,136.16,136.13,5.87645185]
[1641819830855,1.58499145,136.16,136.14,4.15482637]
[1641819831759,4.0,136.15,136.14,4.15482637]
[1641819832358,5.58499145,136.15,136.07,73.7364]
[1641819832558,4.0,136.12,136.07,73.7364]
[1641819832758,1.58499145,136.14,136.1,4.15564566]
[1641819833160,1.58499145,136.13,136.08,4.15564566]
[1641819833561,1.58499145,136.13,136.09,1.836]
[1641819833760,1.58499145,136.12,136.09,7.293]
[1641819833961,9.145e-05,136.12,136.1,7.71384254]
[1641819834161,4.0,136.17,136.1,31.8694882]
[1641819834363,4.0,136.17,136.12,5.87697863]
[1641819834562,4.0,136.17,136.13,1.836]
[1641819834962,4.0,136.17,136.12,11.69497863]
[1641819835562,0.83084325,136.16,136.13,4.15421626]
[1641819836365,4.83084325,136.16,136.13,4.15421626]
[1641819836765,0.83084325,136.16,136.13,4.15421626]
[1641819836968,4.0,136.22,136.13,4.15421626]
[1641819837766,0.83080461,136.21,136.13,4.15421626]
[1641819838367,4.0,136.17,136.13,5.98921626]
[1641819838766,4.0,136.16,136.13,4.15421626]
[1641819838966,11.178,136.2,136.13,4.15421626]
[1641819839166,11.178,136.2,136.11,71.7756]
[1641819839167,4.0,136.14,136.09,1.836]
[1641819839366,8.563,136.14,136.08,65.0349]
[1641819839568,0.83080461,136.13,136.08,65.0349]
[1641819839766,0.83080461,136.13,136.09,1.836]
[1641819839967,4.0,136.16,136.09,7.71431901]
[1641819840169,7.3429526,136.19,136.09,7.71431901]
[1641819840366,4.0,136.17,136.11,5.87742117]
[1641819840567,1.10908582,136.15,136.12,1.836]
[1641819840966,4.0,136.17,136.12,1.836]
[1641819841768,5.10889022,136.16,136.12,1.836]
[1641819841968,1.10889022,136.16,136.12,71.4787]
[1641819842169,4.0,136.22,136.12,71.4787]
[1641819842369,4.0,136.17,136.12,71.4787]
[1641819842569,4.0,136.17,136.12,1.836]
[1641819843068,4.0,136.17,136.12,7.71275734]
[1641819844071,4.0,136.21,136.12,7.71275734]
[1641819844270,4.0,136.13,136.09,1.836]
[1641819844472,4.0,136.12,136.09,1.836]
[1641819844673,4.0,136.12,136.08,14.76928673]
[1641819845074,4.0,136.1,136.08,5.87885515]
[1641819845273,4.0,136.1,136.07,70.69]
[1641819845274,4.0,136.09,136.07,70.69]
[1641819845475,4.0,136.09,136.05,41.19123954]
[1641819845877,11.34564954,136.14,136.05,41.19123954]
[1641819846077,4.0,136.12,136.05,41.19123954]
[1641819846377,4.0,136.11,136.06,1.836]
[1641819846577,4.0,136.11,136.05,8.378]
[1641819847578,4.0,136.11,136.05,1.837]
[1641819848477,4.0,136.13,136.07,5.87920893]
[1641819848677,4.0,136.14,136.08,1.836]
[1641819849078,0.83100687,136.13,136.08,1.836]
[1641819849381,0.83100687,136.13,136.08,27.71476607]
[1641819849678,4.0,136.17,136.11,5.87747167]
[1641819849880,4.0,136.17,136.12,1.836]
[1641819850379,0.83084164,136.16,136.12,1.836]
[1641819850781,0.83084164,136.16,136.14,5.87617268]
[1641819850984,4.0,136.17,136.14,14.92617268]
[1641819851383,4.0,136.17,136.14,9.05]
[1641819851584,4.0,136.22,136.14,34.92620217]
[1641819851585,15.52249298,136.22,136.14,34.92620217]
[1641819851982,4.0,136.19,136.14,14.92620217]
[1641819852184,15.52249298,136.22,136.14,14.92620217]
[1641819852385,0.83061421,136.21,136.14,14.92620217]
[1641819852786,4.0,136.18,136.14,16.76120217]
[1641819853187,4.0,136.24,136.14,16.76120217]
[1641819853389,4.0,136.2,136.14,36.76120217]
[1641819853587,4.0,136.2,136.14,42.63708403]
[1641819853888,4.0,136.21,136.17,20.0]
[1641819854095,4.0,136.21,136.17,6.289]
[1641819854386,4.0,136.18,136.17,6.289]
[1641819854587,9.777,136.18,136.14,5.87588186]
[1641819854789,4.0,136.17,136.14,5.87588186]
[1641819854990,4.0,136.16,136.14,5.87588186]
[1641819855189,4.0,136.17,136.14,5.87588186]
[1641819856289,15.52249298,136.23,136.14,5.87588186]
[1641819856490,4.0,136.2,136.14,5.87588186]
[1641819856691,4.0,136.2,136.12,70.69]
[1641819856692,4.0,136.15,136.12,70.69]
[1641819856990,9.668,136.15,136.11,15.52249298]
[1641819857891,9.668,136.15,136.1,74.95003663]
[1641819858290,5.668,136.15,136.1,7.05333663]
[1641819858691,4.0,136.15,136.1,7.05333663]
[1641819860191,11.34322221,136.19,136.1,7.05333663]
[1641819860390,4.0,136.14,136.11,2.45971906]
[1641819860590,6.643,136.16,136.11,2.45971906]
[1641819860793,4.0,136.14,136.11,2.45971906]
[1641819861096,6.643,136.16,136.11,1.906e-05]
[1641819861097,4.0,136.12,136.11,1.906e-05]
[1641819861294,12.807,136.12,136.08,7.05444324]
[1641819861493,4.0,136.09,136.07,15.52249298]
[1641819861695,4.0,136.08,136.07,15.52249298]
[1641819862097,4.0,136.08,136.07,6.98809298]
[1641819862696,8.0,136.08,136.04,10.00775837]
[1641819862895,4.0,136.05,136.04,10.00775837]
[1641819863095,12.211,136.05,136.04,10.00775837]
[1641819863695,12.211,136.05,136.0,17.72685746]
[1641819864402,8.211,136.05,136.01,1.837]
[1641819864602,7.34672887,136.12,136.01,1.837]
[1641819864802,101.51421547,136.15,136.02,5.88110724]
[1641819864803,4.0,136.1,136.02,5.88110724]
[1641819865102,4.0,136.1,136.03,1.837]
[1641819865303,4.0,136.07,136.03,1.837]
[1641819865502,4.0,136.07,136.02,7.71810724]
[1641819866502,5.772,136.07,136.02,7.71810724]
[1641819867903,4.0,136.04,136.02,5.88110724]
[1641819868402,4.0,136.04,136.01,51.19899791]
[1641819868602,5.772,136.07,136.01,51.19899791]
[1641819868804,4.0,136.03,136.01,51.19899791]
[1641819869003,4.0,136.03,136.0,11.84475837]
[1641819869403,4.0,136.07,136.0,11.84475837]
[1641819869604,4.0,136.05,136.0,10.00775837]
[1641819869804,4.0,136.01,136.0,10.00775837]
[1641819870805,4.0,136.01,135.96,11.84575837]
[1641819871005,4.0,136.05,135.96,11.84575837]
[1641819871204,4.0,136.0,135.96,11.84575837]
[1641819871405,4.0,136.07,135.96,11.84575837]
[1641819871606,4.0,136.08,135.96,11.84575837]
[1641819871808,4.0,136.03,135.99,5.88277865]
[1641819872506,4.0,136.01,135.99,5.88277865]
[1641819872707,4.0,136.01,135.96,17.72963442]
[1641819873308,6.086,136.06,135.96,17.72963442]
[1641819873510,4.0,136.03,135.96,17.72963442]
[1641819873708,4.0,135.97,135.96,10.00775837]
[1641819874409,4.0,136.04,135.93,10.31266319]
[1641819874609,4.0,136.06,135.95,5.88426097]
[1641819874809,4.0,136.02,135.96,1.838]
[1641819875007,4.0,136.02,135.95,16.70626097]
[1641819875210,4.0,136.0,135.95,16.70626097]
[1641819875411,4.0,136.07,135.95,16.70626097]
[1641819875609,4.0,136.06,135.97,5.88335907]
[1641819875807,4.0,136.06,135.99,5.88248206]
[1641819876008,4.0,136.06,136.0,1.837]
[1641819876510,7.34888848,136.08,136.0,1.837]
[1641819877111,4.0,136.07,136.01,20.0]
[1641819877311,4.0,136.09,136.02,7.71824737]
[1641819877511,7.34645901,136.13,136.04,5.88040022]
[1641819877712,4.0,136.09,136.05,1.837]
[1641819877915,4.0,136.08,136.05,1.837]
[1641819878512,4.0,136.08,136.04,5.88040022]
[1641819878713,4.0,136.08,136.05,1.837]
[1641819879714,4.0,136.1,136.05,1.837]
[1641819879913,4.0,136.14,136.05,1.837]
[1641819880114,4.0,136.09,136.05,8.162]
[1641819881014,4.0,136.11,136.05,8.162]